{"text_format":"3","workbook":"xlsx","n_sheets":1,"sheets":["Troškovi"],"not_rendered":{"defined_names":1},"read":"whole","date_system":"1900"}

{"sheet":"Troškovi","index":0,"n_rows":30,"n_cols":6,"rows_kept":30,"merged":[[0,1,0,2],[1,1,1,2]]}
[null,"PRORAČUN TROŠKOVA",{"$nulls":3},{"$f":"NOW()","v":"2012-05-29T18:34:11.720"}]
[null,"Naziv tvrtke"]
[]
[null,"Osoblje","Proračun","Stvarni trošak","Razlika (kn)","Razlika (%)"]
[null,"Ured",null,null,{"$f":"SUM(Table1[Proračun]-Table1[Stvarni trošak])","v":0},{"$f":"IFERROR(SUM(Table1[Razlika (kn)]/Table1[Proračun]),\"\")","v":""}]
[null,"Trgovina",null,null,{"$f":"SUM(Table1[Proračun]-Table1[Stvarni trošak])","v":0},{"$f":"IFERROR(SUM(Table1[Razlika (kn)]/Table1[Proračun]),\"\")","v":""}]
[null,"Prodavači",null,null,{"$f":"SUM(Table1[Proračun]-Table1[Stvarni trošak])","v":0},{"$f":"IFERROR(SUM(Table1[Razlika (kn)]/Table1[Proračun]),\"\")","v":""}]
[null,"Ostalo",null,null,{"$f":"SUM(Table1[Proračun]-Table1[Stvarni trošak])","v":0},{"$f":"IFERROR(SUM(Table1[Razlika (kn)]/Table1[Proračun]),\"\")","v":""}]
[]
[null,"Rad","Proračun","Stvarni trošak","Razlika (kn)","Razlika (%)"]
[null,"Reklamiranje",null,null,{"$f":"SUM(Table2[Proračun]-Table2[Stvarni trošak])","v":0},{"$f":"IFERROR(SUM(Table2[Razlika (kn)]/Table2[Proračun]),\"\")","v":""}]
[null,"Dugovi",null,null,{"$f":"SUM(Table2[Proračun]-Table2[Stvarni trošak])","v":0},{"$f":"IFERROR(SUM(Table2[Razlika (kn)]/Table2[Proračun]),\"\")","v":""}]
[null,"Naknade",null,null,{"$f":"SUM(Table2[Proračun]-Table2[Stvarni trošak])","v":0},{"$f":"IFERROR(SUM(Table2[Razlika (kn)]/Table2[Proračun]),\"\")","v":""}]
[null,"Potrepštine",null,null,{"$f":"SUM(Table2[Proračun]-Table2[Stvarni trošak])","v":0},{"$f":"IFERROR(SUM(Table2[Razlika (kn)]/Table2[Proračun]),\"\")","v":""}]
[null,"Poštarina",null,null,{"$f":"SUM(Table2[Proračun]-Table2[Stvarni trošak])","v":0},{"$f":"IFERROR(SUM(Table2[Razlika (kn)]/Table2[Proračun]),\"\")","v":""}]
[null,"Najam ili hipoteka",null,null,{"$f":"SUM(Table2[Proračun]-Table2[Stvarni trošak])","v":0},{"$f":"IFERROR(SUM(Table2[Razlika (kn)]/Table2[Proračun]),\"\")","v":""}]
[null,"Troškovi prodaje",null,null,{"$f":"SUM(Table2[Proračun]-Table2[Stvarni trošak])","v":0},{"$f":"IFERROR(SUM(Table2[Razlika (kn)]/Table2[Proračun]),\"\")","v":""}]
[null,"Porezi",null,null,{"$f":"SUM(Table2[Proračun]-Table2[Stvarni trošak])","v":0},{"$f":"IFERROR(SUM(Table2[Razlika (kn)]/Table2[Proračun]),\"\")","v":""}]
[null,"Komunalne usluge",null,null,{"$f":"SUM(Table2[Proračun]-Table2[Stvarni trošak])","v":0},{"$f":"IFERROR(SUM(Table2[Razlika (kn)]/Table2[Proračun]),\"\")","v":""}]
[null,"Ostalo",null,null,{"$f":"SUM(Table2[Proračun]-Table2[Stvarni trošak])","v":0},{"$f":"IFERROR(SUM(Table2[Razlika (kn)]/Table2[Proračun]),\"\")","v":""}]
[null,"Osiguranje",null,null,{"$f":"SUM(Table2[Proračun]-Table2[Stvarni trošak])","v":0},{"$f":"IFERROR(SUM(Table2[Razlika (kn)]/Table2[Proračun]),\"\")","v":""}]
[null,"Kamata",null,null,{"$f":"SUM(Table2[Proračun]-Table2[Stvarni trošak])","v":0},{"$f":"IFERROR(SUM(Table2[Razlika (kn)]/Table2[Proračun]),\"\")","v":""}]
[null,"Telefon",null,null,{"$f":"SUM(Table2[Proračun]-Table2[Stvarni trošak])","v":0},{"$f":"IFERROR(SUM(Table2[Razlika (kn)]/Table2[Proračun]),\"\")","v":""}]
[null,"Održavanje i popravci",null,null,{"$f":"SUM(Table2[Proračun]-Table2[Stvarni trošak])","v":0},{"$f":"IFERROR(SUM(Table2[Razlika (kn)]/Table2[Proračun]),\"\")","v":""}]
[null,"Odvjetnički troškovi",null,null,{"$f":"SUM(Table2[Proračun]-Table2[Stvarni trošak])","v":0},{"$f":"IFERROR(SUM(Table2[Razlika (kn)]/Table2[Proračun]),\"\")","v":""}]
[null,"Amortizacija",null,null,{"$f":"SUM(Table2[Proračun]-Table2[Stvarni trošak])","v":0},{"$f":"IFERROR(SUM(Table2[Razlika (kn)]/Table2[Proračun]),\"\")","v":""}]
[null,"Dostava",null,null,{"$f":"SUM(Table2[Proračun]-Table2[Stvarni trošak])","v":0},{"$f":"IFERROR(SUM(Table2[Razlika (kn)]/Table2[Proračun]),\"\")","v":""}]
[null,"Skladištenje",null,null,{"$f":"SUM(Table2[Proračun]-Table2[Stvarni trošak])","v":0},{"$f":"IFERROR(SUM(Table2[Razlika (kn)]/Table2[Proračun]),\"\")","v":""}]
[null,"Ostalo",null,null,{"$f":"SUM(Table2[Proračun]-Table2[Stvarni trošak])","v":0},{"$f":"IFERROR(SUM(Table2[Razlika (kn)]/Table2[Proračun]),\"\")","v":""}]
[null,"Ukupno troškovi",{"$f":"SUM(Table1[Proračun],Table2[Proračun])","v":0},{"$f":"SUM(Table1[Stvarni trošak],Table2[Stvarni trošak])","v":0},{"$f":"SUM(Table1[Razlika (kn)],Table2[Razlika (kn)])","v":0},{"$f":"IFERROR(SUM(Table2[[#Totals],[Razlika (kn)]]/Table2[[#Totals],[Proračun]]),\"\")","v":""}]